fUSD/lending_fUSD_20250119
["ID","MTS","AMOUNT","RATE_DAILY","PERIOD"]
[349598173,1737322242437,-1105.53,0.00020172,2]
[349598175,1737322242447,-500.0,0.00020172,2]
[349598177,1737322242457,-593.7,0.00020172,2]
[349598179,1737322242467,-500.0,0.00020172,2]
[349598181,1737322242477,-500.0,0.00020172,2]
[349598183,1737322242486,-500.0,0.00020172,2]
[349598185,1737322242496,-504.32955491,0.00020172,2]
[349598188,1737322242506,-500.0,0.00020172,2]
[349598191,1737322242517,-500.0,0.00020172,2]
[349598194,1737322242526,-500.0,0.00020172,2]
[349598197,1737322242536,-500.0,0.00020172,2]
[349598199,1737322242546,-807.0,0.00020172,2]
[349598201,1737322242556,-500.0,0.00020172,2]
[349598203,1737322242566,-500.0,0.00020172,2]
[349598205,1737322242576,-500.0,0.00020172,2]
[349598207,1737322242585,-522.78,0.00020172,2]
[349598209,1737322242595,-500.0,0.00020172,2]
[349598211,1737322242604,-1482.4,0.00020172,2]
[349598213,1737322242618,-340.85341764,0.00020172,2]
[349598216,1737322242628,-500.0,0.00020172,2]
[349598218,1737322242637,-500.0,0.00020172,2]
[349598221,1737322242647,-500.0,0.00020172,2]
[349598224,1737322242656,-500.0,0.00020172,2]
[349598226,1737322242666,-500.0,0.00020172,2]
[349598229,1737322242678,-500.0,0.00020172,2]
[349598232,1737322242687,-500.0,0.00020172,2]
[349598234,1737322242697,-645.57,0.00020172,2]
[349598237,1737322242707,-500.0,0.00020172,2]
[349598240,1737322242717,-500.0,0.00020172,2]
[349598243,1737322242726,-200.0,0.00020241,2]
[349598246,1737322242736,-491.21269326,0.00020265,2]
[349598248,1737322242745,-2723.8625127,0.00020267,2]
[349598251,1737322242755,-500.0,0.00020272,2]
[349598254,1737322242767,-500.0,0.00020272,2]
[349598257,1737322242778,-500.0,0.00020272,2]
[349598259,1737322242788,-500.0,0.00020272,2]
[349598262,1737322242798,-500.0,0.00020272,2]
[349598265,1737322242808,-500.0,0.00020272,2]
[349598267,1737322242818,-500.0,0.00020272,2]
[349598270,1737322242828,-598.93,0.00020272,2]
[349598273,1737322242838,-500.0,0.00020272,2]
[349598276,1737322242848,-500.0,0.00020272,2]
[349598279,1737322242857,-500.0,0.00020272,2]
[349598281,1737322242873,-500.0,0.00020272,2]
[349598284,1737322242883,-500.0,0.00020272,2]
[349598287,1737322242892,-500.0,0.00020272,2]
[349598289,1737322242902,-1267.35,0.00020272,2]
[349598291,1737322242912,-500.0,0.00020272,2]
[349598293,1737322242926,-500.0,0.00020272,2]
[349598295,1737322242937,-500.0,0.00020272,2]
[349598297,1737322242948,-500.0,0.00020272,2]
[349598299,1737322242958,-500.0,0.00020273,2]
[349598301,1737322242970,-500.0,0.00020273,2]
[349598303,1737322242980,-500.0,0.00020273,2]
[349598305,1737322242991,-590.52,0.00020273,2]
[349598307,1737322243002,-500.0,0.00020273,2]
[349598309,1737322243014,-500.0,0.00020273,2]
[349598311,1737322243024,-500.0,0.00020273,2]
[349598313,1737322243035,-500.0,0.00020273,2]
[349598315,1737322243046,-817.65,0.00020273,2]
[349598317,1737322243058,-500.0,0.00020273,2]
[349598319,1737322243069,-987.09,0.00020273,2]
[349598321,1737322243080,-425.80543622,0.00020273,2]
[349598323,1737322243091,-500.0,0.00020273,2]
[349598325,1737322243101,-500.0,0.00020273,2]
[349598327,1737322243116,-502.43,0.00020273,2]
[349598330,1737322243127,-963.33,0.00020273,2]
[349598332,1737322243136,-500.0,0.00020273,2]
[349598333,1737322243147,-2339.48427,0.00020273,2]
[349598336,1737322243158,-500.0,0.00020273,2]
[349598338,1737322243169,-500.0,0.00020273,2]
[349598339,1737322243181,-150.0,0.00020356,2]
[349598341,1737322243191,-216.29,0.00020356,2]
[349598343,1737322243201,-150.0,0.00020356,2]
[349598345,1737322243212,-150.0,0.00020356,2]
[349598348,1737322243222,-150.0,0.00020356,2]
[349598350,1737322243233,-150.0,0.00020356,2]
[349598351,1737322243244,-150.0,0.00020356,2]
[349598355,1737322243254,-150.0,0.00020356,2]
[349598358,1737322243264,-150.0,0.00020356,2]
[349598360,1737322243274,-150.0,0.00020356,2]
[349598363,1737322243285,-649.81,0.00020446,2]
[349598366,1737322243296,-500.0,0.00020446,2]
[349598369,1737322243306,-500.0,0.00020446,2]
[349598371,1737322243316,-241.582488,0.00020446,2]
[349598373,1737322243325,-500.0,0.00020446,2]
[349598376,1737322243335,-196.46293043,0.00020446,2]
[349598378,1737322243345,-500.0,0.00020446,2]
[349598380,1737322243354,-500.0,0.00020446,2]
[349598383,1737322243366,-500.0,0.00020446,2]
[349598385,1737322243376,-500.0,0.00020446,2]
[349598387,1737322243387,-633.64,0.00020446,2]
[349598389,1737322243397,-581.08,0.00020446,2]
[349598391,1737322243406,-505.9,0.00020446,2]
[349598393,1737322243416,-500.0,0.00020446,2]
[349598395,1737322243426,-464.49161619,0.00020446,2]
[349598397,1737322243436,-595.1,0.00020446,2]
[349598399,1737322243445,-500.0,0.00020446,2]
[349598401,1737322243455,-619.73,0.00020446,2]
[349598403,1737322243466,-534.73,0.00020446,2]
[349598405,1737322243476,-770.67,0.00020446,2]
[349598407,1737322243486,-500.0,0.00020446,2]
[349598409,1737322243496,-500.0,0.00020446,2]
[349598411,1737322243506,-500.0,0.00020446,2]
[349598413,1737322243517,-1480.05,0.00020446,2]
[349598415,1737322243527,-261.03875927,0.00020446,2]
[349598417,1737322243537,-500.0,0.00020446,2]
[349598419,1737322243546,-500.0,0.00020446,2]
[349598421,1737322243556,-500.0,0.00020446,2]
[349598423,1737322243566,-500.0,0.00020446,2]
[349598425,1737322243577,-697.49133885,0.00020446,2]
[349598430,1737322243626,-1081.38866115,0.00020446,2]
[349598432,1737322243636,-649.07,0.00020446,2]
[349598434,1737322243646,-500.0,0.00020446,2]
[349598436,1737322243656,-770.99,0.00020446,2]
[349598438,1737322243666,-500.0,0.00020446,2]
[349598440,1737322243676,-500.0,0.00020446,2]
[349598442,1737322243687,-1405.28,0.00020446,2]
[349598444,1737322243697,-500.0,0.00020446,2]
[349598446,1737322243708,-500.0,0.00020446,2]
[349598448,1737322243718,-500.0,0.00020446,2]
[349598450,1737322243728,-500.0,0.00020446,2]
[349598452,1737322243738,-500.0,0.00020446,2]
[349598454,1737322243747,-924.51,0.00020446,2]
[349598456,1737322243756,-500.0,0.00020446,2]
[349598458,1737322243766,-500.0,0.00020446,2]
[349598460,1737322243777,-1750.43,0.00020446,2]
[349598462,1737322243787,-608.38,0.00020446,2]
[349598464,1737322243798,-500.0,0.00020446,2]
[349598466,1737322243809,-500.0,0.00020446,2]
[349598468,1737322243819,-500.09,0.00020446,2]
[349598470,1737322243832,-500.0,0.00020446,2]
[349598472,1737322243842,-500.0,0.00020446,2]
[349598474,1737322243853,-940.93,0.00020446,2]
[349598475,1737322243865,-500.0,0.00020446,2]
[349598476,1737322243876,-863.64,0.00020446,2]
[349598477,1737322243886,-553.61341797,0.00020446,2]
[349598478,1737322243897,-500.0,0.00020446,2]
[349598479,1737322243907,-500.0,0.00020446,2]
[349598480,1737322243917,-702.71,0.00020446,2]
[349598481,1737322243927,-508.86188082,0.00020446,2]
[349598482,1737322243936,-500.0,0.00020446,2]
[349598484,1737322243946,-710.23,0.00020446,2]
[349598486,1737322243955,-500.0,0.00020446,2]
[349598488,1737322243969,-500.0,0.00020446,2]
[349598490,1737322243978,-543.52,0.00020446,2]
[349598492,1737322243987,-683.08,0.00020446,2]
[349598494,1737322243998,-1105.53,0.00020446,2]
[349598496,1737322244007,-500.0,0.00020446,2]
[349598498,1737322244017,-593.7,0.00020446,2]
[349598500,1737322244027,-500.0,0.00020446,2]
[349598502,1737322244038,-500.0,0.00020446,2]
[349598504,1737322244049,-500.0,0.00020446,2]
[349598506,1737322244059,-276.12336459,0.00020446,2]
[349598508,1737322244070,-500.0,0.00020446,2]
[349598510,1737322244080,-500.0,0.00020446,2]
[349598512,1737322244090,-500.0,0.00020446,2]
[349598514,1737322244100,-500.0,0.00020446,2]
[349598516,1737322244110,-807.0,0.00020446,2]
[349598517,1737322244123,-500.0,0.00020446,2]
[349598532,1737322244254,-500.0,0.00020446,2]
[349598534,1737322244264,-522.78,0.00020446,2]
[349598536,1737322244274,-502.22237101,0.00020446,2]
[349598538,1737322244284,-1482.4,0.00020446,2]
[349598540,1737322244294,-500.0,0.00020446,2]
[349598542,1737322244304,-500.0,0.00020446,2]
[349598544,1737322244314,-500.0,0.00020446,2]
[349598546,1737322244324,-500.0,0.00020446,2]
[349598548,1737322244333,-500.0,0.00020446,2]
[349598550,1737322244343,-570.75719007,0.00020446,2]
[349598552,1737322244352,-645.57,0.00020446,2]
[349598554,1737322244362,-500.0,0.00020446,2]
[349598556,1737322244375,-500.0,0.00020446,2]
[349598558,1737322244385,-1192.7269,0.00020446,2]
[349598560,1737322244395,-491.21269326,0.00020499,2]
[349598562,1737322244405,-2723.8625127,0.000205,2]
[349598564,1737322244415,-500.0,0.00020546,2]
[349598566,1737322244424,-500.0,0.00020546,2]
[349598568,1737322244434,-500.0,0.00020546,2]
[349598570,1737322244444,-500.0,0.00020546,2]
[349598572,1737322244453,-500.0,0.00020546,2]
[349598574,1737322244463,-500.0,0.00020546,2]
[349598576,1737322244472,-500.0,0.00020546,2]
[349598578,1737322244481,-598.93,0.00020546,2]
[349598580,1737322244491,-500.0,0.00020546,2]
[349598582,1737322244501,-500.0,0.00020546,2]
[349598584,1737322244510,-500.0,0.00020546,2]
[349598586,1737322244520,-500.0,0.00020546,2]
[349598588,1737322244530,-500.0,0.00020546,2]
[349598590,1737322244539,-500.0,0.00020546,2]
[349598592,1737322244548,-1267.35,0.00020546,2]
[349598594,1737322244558,-500.0,0.00020546,2]
[349598596,1737322244567,-500.0,0.00020546,2]
[349598597,1737322244577,-500.0,0.00020546,2]
[349598600,1737322244587,-500.0,0.00020546,2]
[349598601,1737322244597,-500.0,0.00020546,2]
[349598603,1737322244607,-556.58170074,0.00020547,2]
[349598606,1737322244620,-500.0,0.00020547,2]
[349598607,1737322244630,-500.0,0.00020547,2]
[349598609,1737322244639,-590.52,0.00020547,2]
[349598612,1737322244648,-500.0,0.00020547,2]
[349598614,1737322244658,-500.0,0.00020547,2]
[349598615,1737322244668,-648.54,0.00020547,2]
[349598617,1737322244677,-500.0,0.00020547,2]
[349598619,1737322244687,-817.65,0.00020547,2]
[349598621,1737322244697,-500.0,0.00020547,2]
[349598623,1737322244707,-987.09,0.00020547,2]
[349598626,1737322244716,-500.0,0.00020547,2]
[349598628,1737322244726,-500.0,0.00020547,2]
[349598630,1737322244736,-502.43,0.00020547,2]
[349598632,1737322244746,-963.33,0.00020547,2]
[349598634,1737322244756,-500.0,0.00020547,2]
[349598636,1737322244767,-500.0,0.00020547,2]
[349598638,1737322244776,-500.0,0.00020547,2]
[349598640,1737322244787,-1000.0,0.00020701,2]
[349598642,1737322244800,-649.81,0.0002072,2]
[349598644,1737322244810,-500.0,0.0002072,2]
[349598646,1737322244819,-500.0,0.0002072,2]
[349598648,1737322244829,-241.582488,0.0002072,2]
[349598650,1737322244839,-500.0,0.0002072,2]
[349598652,1737322244849,-500.0,0.0002072,2]
[349598654,1737322244861,-500.0,0.0002072,2]
[349598656,1737322244873,-500.0,0.0002072,2]
[349598658,1737322244882,-611.13,0.0002072,2]
[349598660,1737322244892,-633.64,0.0002072,2]
[349598662,1737322244901,-581.08,0.0002072,2]
[349598664,1737322244912,-505.9,0.0002072,2]
[349598666,1737322244924,-500.0,0.0002072,2]
[349598668,1737322244933,-595.1,0.0002072,2]
[349598670,1737322244943,-500.0,0.0002072,2]
[349598672,1737322244952,-619.73,0.0002072,2]
[349598674,1737322244963,-534.73,0.0002072,2]
[349598676,1737322244973,-770.67,0.0002072,2]
[349598678,1737322244985,-500.0,0.0002072,2]
[349598680,1737322244995,-500.0,0.0002072,2]
[349598682,1737322245004,-500.0,0.0002072,2]
[349598684,1737322245014,-1480.05,0.0002072,2]
[349598686,1737322245023,-500.0,0.0002072,2]
[349598688,1737322245033,-500.0,0.0002072,2]
[349598690,1737322245042,-500.0,0.0002072,2]
[349598692,1737322245053,-500.0,0.0002072,2]
[349598694,1737322245063,-1778.88,0.0002072,2]
[349598696,1737322245073,-649.07,0.0002072,2]
[349598698,1737322245082,-500.0,0.0002072,2]
[349598700,1737322245092,-770.99,0.0002072,2]
[349598702,1737322245101,-500.0,0.0002072,2]
[349598704,1737322245111,-500.0,0.0002072,2]
[349598705,1737322245125,-1405.28,0.0002072,2]
[349598706,1737322245135,-500.0,0.0002072,2]
[349598707,1737322245145,-500.0,0.0002072,2]
[349598709,1737322245156,-500.0,0.0002072,2]
[349598711,1737322245166,-500.0,0.0002072,2]
[349598712,1737322245176,-500.0,0.0002072,2]
[349598715,1737322245187,-924.51,0.0002072,2]
[349598717,1737322245198,-500.0,0.0002072,2]
[349598719,1737322245208,-500.0,0.0002072,2]
[349598720,1737322245219,-1750.43,0.0002072,2]
[349598722,1737322245228,-608.38,0.0002072,2]
[349598724,1737322245238,-500.0,0.0002072,2]
[349598726,1737322245247,-500.0,0.0002072,2]
[349598728,1737322245257,-500.09,0.0002072,2]
[349598730,1737322245266,-500.0,0.0002072,2]
[349598732,1737322245276,-500.0,0.0002072,2]
[349598734,1737322245285,-940.93,0.0002072,2]
[349598736,1737322245294,-500.0,0.0002072,2]
[349598738,1737322245304,-863.64,0.0002072,2]
[349598741,1737322245314,-500.0,0.0002072,2]
[349598743,1737322245323,-500.0,0.0002072,2]
[349598745,1737322245332,-702.71,0.0002072,2]
[349598747,1737322245341,-500.0,0.0002072,2]
[349598749,1737322245351,-500.0,0.0002072,2]
[349598752,1737322245360,-710.23,0.0002072,2]
[349598755,1737322245373,-500.0,0.0002072,2]
[349598758,1737322245382,-543.52,0.0002072,2]
[349598760,1737322245391,-683.08,0.0002072,2]
[349598762,1737322245401,-1105.53,0.0002072,2]
[349598764,1737322245411,-593.7,0.0002072,2]
[349598766,1737322245420,-500.0,0.0002072,2]
[349598768,1737322245430,-500.0,0.0002072,2]
[349598770,1737322245439,-500.0,0.0002072,2]
[349598773,1737322245448,-500.0,0.0002072,2]
[349598775,1737322245457,-500.0,0.0002072,2]
[349598778,1737322245467,-500.0,0.0002072,2]
[349598780,1737322245476,-807.0,0.0002072,2]
[349598783,1737322245484,-500.0,0.0002072,2]
[349598785,1737322245494,-500.0,0.0002072,2]
[349598787,1737322245503,-522.78,0.0002072,2]
[349598790,1737322245512,-1482.4,0.0002072,2]
[349598794,1737322245522,-500.0,0.0002072,2]
[349598798,1737322245532,-500.0,0.0002072,2]
[349598802,1737322245542,-500.0,0.0002072,2]
[349598805,1737322245551,-500.0,0.0002072,2]
[349598808,1737322245561,-645.57,0.0002072,2]
[349598812,1737322245571,-500.0,0.0002072,2]
[349598813,1737322245581,-500.0,0.0002072,2]
[349598816,1737322245590,-491.21269326,0.00020732,2]
[349598818,1737322245599,-2723.8625127,0.00020733,2]
[349598823,1737322245611,-17672.25057786,0.00020783,2]
[349598826,1737322245628,-4325.75841358,0.00020785,2]
[349598830,1737322245643,-400.22186294,0.00020788,2]
[349598834,1737322245656,-657.30560022,0.00020792,2]
[349598837,1737322245667,-4325.75841358,0.00020795,2]
[349598841,1737322245681,-17672.25057786,0.00020796,2]
[349598845,1737322245694,-541.1853524,0.000208,2]
[349598848,1737322245708,-541.1853524,0.00020805,2]
[349598852,1737322245721,-657.30560022,0.00020807,2]
[349598856,1737322245736,-6749.19023677,0.00020812,2]
[349598859,1737322245750,-657.30560022,0.00020814,2]
[349598863,1737322245762,-4325.75841358,0.00020816,2]
[349598867,1737322245775,-500.0,0.0002082,2]
[349598870,1737322245787,-157.44792853,0.0002082,2]
[349598873,1737322245798,-500.0,0.0002082,2]
[349598876,1737322245811,-500.0,0.0002082,2]
[349598881,1737322245824,-500.0,0.0002082,2]
[349598884,1737322245836,-305.94320592,0.0002082,2]
[349598887,1737322245850,-500.0,0.0002082,2]
[349598890,1737322245862,-500.0,0.0002082,2]
[349598894,1737322245879,-500.0,0.0002082,2]
[349598897,1737322245892,-500.0,0.0002082,2]
[349598901,1737322245905,-500.0,0.0002082,2]
[349598905,1737322245918,-500.0,0.0002082,2]
[349598908,1737322245937,-500.0,0.0002082,2]
[349598913,1737322245951,-500.0,0.0002082,2]
[349598916,1737322245966,-500.0,0.0002082,2]
[349598918,1737322245979,-500.0,0.0002082,2]
[349598920,1737322245991,-547.15690207,0.0002082,2]
[349598923,1737322246003,-500.0,0.0002082,2]
[349598925,1737322246016,-500.0,0.0002082,2]
[349598927,1737322246030,-503.16154638,0.0002082,2]
[349598930,1737322246044,-500.0,0.0002082,2]
[349598932,1737322246056,-500.0,0.0002082,2]
[349598934,1737322246068,-500.0,0.0002082,2]
[349598936,1737322246079,-500.0,0.0002082,2]
[349598938,1737322246091,-369.74988051,0.0002082,2]
[349598941,1737322246102,-500.0,0.0002082,2]
[349598943,1737322246119,-500.0,0.0002082,2]
[349598945,1737322246135,-500.0,0.0002082,2]
[349598947,1737322246146,-500.0,0.0002082,2]
[349598949,1737322246158,-500.0,0.0002082,2]
[349598952,1737322246169,-502.88532292,0.0002082,2]
[349598954,1737322246181,-500.0,0.0002082,2]
[349598956,1737322246193,-500.0,0.0002082,2]
[349598958,1737322246206,-500.0,0.0002082,2]
[349598960,1737322246218,-502.44421726,0.0002082,2]
[349598962,1737322246229,-500.0,0.0002082,2]
[349598964,1737322246240,-500.0,0.0002082,2]
[349598966,1737322246251,-500.0,0.0002082,2]
[349598969,1737322246262,-500.0,0.0002082,2]
[349598970,1737322246273,-498.37097582,0.0002082,2]
[349598971,1737322246285,-500.84808765,0.0002082,2]
[349598972,1737322246296,-503.5191488,0.0002082,2]
[349598973,1737322246307,-500.0,0.0002082,2]
[349598974,1737322246318,-500.0,0.0002082,2]
[349598975,1737322246329,-500.0,0.0002082,2]
[349598976,1737322246341,-500.0,0.0002082,2]
[349598977,1737322246354,-500.79644056,0.0002082,2]
[349598978,1737322246371,-500.0,0.0002082,2]
[349598979,1737322246383,-500.0,0.0002082,2]
[349598980,1737322246395,-503.89340529,0.0002082,2]
[349598982,1737322246407,-500.85419082,0.0002082,2]
[349598984,1737322246418,-524.26543937,0.0002082,2]
[349598987,1737322246429,-500.0,0.0002082,2]
[349598989,1737322246442,-500.0,0.0002082,2]
[349598991,1737322246453,-500.0,0.0002082,2]
[349598993,1737322246465,-507.40193631,0.0002082,2]
[349598995,1737322246476,-500.0,0.0002082,2]
[349598997,1737322246488,-500.0,0.0002082,2]
[349599000,1737322246499,-500.0,0.0002082,2]
[349599002,1737322246510,-500.0,0.0002082,2]
[349599004,1737322246522,-543.70801763,0.0002082,2]
[349599006,1737322246534,-501.45164206,0.0002082,2]
[349599008,1737322246545,-500.0,0.0002082,2]
[349599010,1737322246557,-500.9955463,0.0002082,2]
[349599013,1737322246569,-501.88695464,0.0002082,2]
[349599015,1737322246581,-500.0,0.0002082,2]
[349599017,1737322246593,-601.47,0.0002082,2]
[349599019,1737322246604,-500.0,0.0002082,2]
[349599021,1737322246617,-500.0,0.0002082,2]
[349599024,1737322246629,-500.0,0.0002082,2]
[349599026,1737322246641,-500.0,0.0002082,2]
[349599028,1737322246652,-500.0,0.0002082,2]
[349599030,1737322246664,-500.0,0.0002082,2]
[349599032,1737322246675,-500.0,0.0002082,2]
[349599035,1737322246687,-500.0,0.0002082,2]
[349599037,1737322246698,-500.0,0.0002082,2]
[349599039,1737322246710,-500.0,0.0002082,2]
[349599041,1737322246720,-500.0,0.0002082,2]
[349599043,1737322246731,-502.00187415,0.0002082,2]
[349599045,1737322246742,-500.0,0.0002082,2]
[349599048,1737322246754,-150.96183157,0.0002082,2]
[349599050,1737322246766,-500.0,0.0002082,2]
[349599052,1737322246778,-500.0,0.0002082,2]
[349599054,1737322246790,-500.0,0.0002082,2]
[349599056,1737322246801,-598.93,0.0002082,2]
[349599059,1737322246812,-500.0,0.0002082,2]
[349599061,1737322246824,-354.95148345,0.0002082,2]
[349599063,1737322246835,-500.0,0.0002082,2]
[349599065,1737322246846,-500.0,0.0002082,2]
[349599067,1737322246858,-398.74744331,0.0002082,2]
[349599070,1737322246874,-500.0,0.0002082,2]
[349599072,1737322246885,-500.0,0.0002082,2]
[349599074,1737322246896,-500.0,0.0002082,2]
[349599076,1737322246907,-500.0,0.0002082,2]
[349599077,1737322246919,-500.0,0.0002082,2]
[349599078,1737322246930,-500.0,0.0002082,2]
[349599079,1737322246941,-500.0,0.0002082,2]
[349599080,1737322246952,-223.53520898,0.0002082,2]
[349599081,1737322246966,-500.0,0.0002082,2]
[349599082,1737322246977,-500.0,0.0002082,2]
[349599084,1737322246987,-500.0,0.0002082,2]
[349599086,1737322246996,-500.0,0.0002082,2]
[349599088,1737322247006,-500.0,0.0002082,2]
[349599090,1737322247017,-500.0,0.0002082,2]
[349599092,1737322247026,-500.0,0.0002082,2]
[349599094,1737322247037,-500.0,0.0002082,2]
[349599096,1737322247047,-500.0,0.0002082,2]
[349599098,1737322247056,-500.0,0.0002082,2]
[349599100,1737322247065,-500.0,0.0002082,2]
[349599102,1737322247074,-500.0,0.0002082,2]
[349599104,1737322247084,-500.0,0.0002082,2]
[349599106,1737322247096,-500.0,0.0002082,2]
[349599108,1737322247105,-500.0,0.0002082,2]
[349599110,1737322247119,-500.0,0.0002082,2]
[349599112,1737322247129,-870.44,0.0002082,2]
[349599114,1737322247138,-570.35,0.0002082,2]
[349599116,1737322247147,-500.0,0.0002082,2]
[349599118,1737322247155,-500.0,0.0002082,2]
[349599119,1737322247165,-500.0,0.0002082,2]
[349599122,1737322247174,-500.0,0.0002082,2]
[349599123,1737322247184,-308.55412697,0.0002082,2]
[349599148,1737322247193,-500.0,0.0002082,2]
[349599151,1737322247435,-500.0,0.0002082,2]
[349599154,1737322247450,-500.0,0.0002082,2]
[349599156,1737322247460,-500.0,0.0002082,2]
[349599158,1737322247471,-1267.35,0.0002082,2]
[349599160,1737322247482,-500.0,0.0002082,2]
[349599162,1737322247492,-500.0,0.0002082,2]
[349599164,1737322247503,-500.0,0.0002082,2]
[349599166,1737322247513,-500.0,0.0002082,2]
[349599168,1737322247523,-500.0,0.0002082,2]
[349599170,1737322247533,-500.0,0.0002082,2]
[349599172,1737322247543,-500.0,0.0002082,2]
[349599174,1737322247552,-500.0,0.0002082,2]
[349599176,1737322247563,-500.0,0.0002082,2]
[349599178,1737322247573,-500.0,0.0002082,2]
[349599180,1737322247583,-500.0,0.0002082,2]
[349599182,1737322247592,-508.66546683,0.0002082,2]
[349599184,1737322247602,-500.0,0.0002082,2]
[349599186,1737322247612,-500.0,0.0002082,2]
[349599188,1737322247626,-500.0,0.0002082,2]
[349599190,1737322247636,-500.0,0.0002082,2]
[349599192,1737322247645,-500.0,0.0002082,2]
[349599194,1737322247654,-1000.0,0.0002082,2]
[349599196,1737322247664,-500.0,0.0002082,2]
[349599198,1737322247673,-500.0,0.0002082,2]
[349599200,1737322247683,-500.0,0.0002082,2]
[349599202,1737322247692,-500.0,0.0002082,2]
[349599204,1737322247702,-500.0,0.0002082,2]
[349599206,1737322247711,-526.12,0.0002082,2]
[349599208,1737322247721,-500.0,0.0002082,2]
[349599210,1737322247730,-500.0,0.0002082,2]
[349599212,1737322247739,-500.0,0.0002082,2]
[349599214,1737322247750,-500.0,0.0002082,2]
[349599216,1737322247761,-777.04,0.0002082,2]
[349599218,1737322247771,-500.0,0.0002082,2]
[349599220,1737322247781,-500.0,0.0002082,2]
[349599222,1737322247792,-426.149066,0.0002082,2]
[349599224,1737322247802,-502.23,0.0002082,2]
[349599226,1737322247812,-500.0,0.0002082,2]
[349599228,1737322247823,-500.0,0.0002082,2]
[349599230,1737322247834,-500.0,0.0002082,2]
[349599232,1737322247845,-500.0,0.0002082,2]
[349599234,1737322247855,-500.0,0.0002082,2]
[349599236,1737322247865,-500.0,0.0002082,2]
[349599237,1737322247878,-304.38551846,0.00020821,2]
[349599239,1737322247888,-590.52,0.00020821,2]
[349599241,1737322247898,-500.0,0.00020821,2]
[349599243,1737322247908,-500.0,0.00020821,2]
[349599245,1737322247918,-500.0,0.00020821,2]
[349599248,1737322247933,-817.65,0.00020821,2]
[349599250,1737322247942,-500.0,0.00020821,2]
[349599252,1737322247953,-987.09,0.00020821,2]
[349599253,1737322247962,-500.0,0.00020821,2]
[349599255,1737322247972,-500.0,0.00020821,2]
[349599257,1737322247981,-502.43,0.00020821,2]
[349599259,1737322247991,-963.33,0.00020821,2]
[349599261,1737322248001,-500.0,0.00020821,2]
[349599263,1737322248011,-629.69257042,0.00020821,2]
[349599265,1737322248020,-500.0,0.00020821,2]
[349599267,1737322248031,-4325.75841358,0.00020822,2]
[349599269,1737322248040,-657.30560022,0.00020824,2]
[349599271,1737322248050,-400.22186294,0.0002083,2]
[349599273,1737322248059,-17672.25057786,0.00020832,2]
[349599275,1737322248069,-657.30560022,0.00020834,2]
[349599277,1737322248079,-400.22186294,0.00020837,2]
[349599279,1737322248089,-400.22186294,0.00020839,2]
[349599281,1737322248099,-6749.19023677,0.00020846,2]
[349599283,1737322248109,-394.09577613,0.00020849,2]
[349599285,1737322248122,-541.1853524,0.00020865,2]
[349599287,1737322248132,-517.44850357,0.00020866,2]